bitfinex/quotes_ETHUSD_20241207
["timestamp","ask_amount","ask_price","bid_price","bid_amount"]
[1733609452190,2.1400659,4006.3,4005.8,1.07751859]
[1733609452404,1.04131365,4006.2,4005.8,1.07751859]
[1733609452601,1.03670203,4006.4,4005.8,1.07751859]
[1733609452915,2.325274,4006.3,4005.9,0.7792]
[1733609453117,2.325274,4006.3,4005.8,1.07751859]
[1733609453118,3.36189255,4006.2,4005.8,0.81657369]
[1733609453308,2.32519052,4006.1,4005.8,0.81657369]
[1733609453523,0.18528632,4006.0,4005.8,0.81657369]
[1733609453819,1.03670203,4006.3,4005.8,0.81657369]
[1733609454026,1.03670203,4006.1,4005.8,0.81657369]
[1733609454181,1.03670203,4006.4,4005.8,0.81657369]
[1733609454522,2.13984281,4006.3,4005.8,0.81657369]
[1733609454688,1.04140675,4006.2,4005.8,0.81657369]
[1733609454888,1.03670203,4006.5,4005.8,0.81657369]
[1733609455082,2.32532865,4006.4,4005.8,0.81657369]
[1733609455307,1.04141477,4006.3,4005.8,0.81657369]
[1733609455619,0.18547218,4006.2,4005.8,0.81657369]
[1733609455819,0.18546835,4006.1,4005.8,0.81657369]
[1733609456024,0.73036291,4006.5,4005.8,0.81657369]
[1733609456181,1.4539637,4006.4,4005.8,0.81657369]
[1733609456388,0.18551833,4006.3,4005.8,0.81657369]
[1733609456624,1.83750203,4006.6,4005.8,0.81657369]
[1733609456828,2.32607788,4006.5,4005.8,0.81657369]
[1733609457118,1.04173451,4006.4,4005.8,0.81657369]
[1733609457288,0.18554253,4006.3,4005.8,0.81657369]
[1733609457488,1.83750203,4006.6,4005.8,0.81657369]
[1733609457712,2.68867177,4006.5,4005.8,0.81657369]
[1733609458027,1.04181192,4006.4,4005.8,0.81657369]
[1733609458230,0.18555705,4006.3,4005.8,0.81657369]
[1733609458523,0.36247754,4006.5,4005.8,0.81657369]
[1733609458681,1.04182269,4006.4,4005.8,0.81657369]
[1733609458886,1.03670203,4006.2,4005.8,0.81657369]
[1733609459088,1.04182269,4006.1,4005.8,0.81657369]
[1733609459281,0.18557167,4006.0,4005.8,0.81657369]
[1733609459485,1.03670203,4006.4,4005.8,0.81657369]
[1733609459850,0.18557506,4006.3,4005.8,0.81657369]
[1733609460021,0.55924948,4006.4,4005.8,0.81657369]
[1733609460022,0.36247754,4006.5,4005.8,0.81657369]
[1733609460193,1.04185352,4006.4,4005.8,0.81657369]
[1733609460397,0.18558566,4006.3,4005.8,0.81657369]
[1733609460601,0.36247754,4006.5,4005.8,0.81657369]
[1733609460801,1.04198196,4006.4,4005.8,0.81657369]
[1733609461001,0.1856012,4006.3,4005.8,0.81657369]
[1733609461201,0.1856012,4006.2,4005.8,0.81657369]
[1733609461398,1.39917957,4006.5,4005.8,0.81657369]
[1733609461731,1.41768109,4006.4,4005.8,0.81657369]
[1733609462021,0.18561969,4006.3,4005.8,0.81657369]
[1733609462228,0.18561969,4006.2,4005.8,0.81657369]
[1733609462387,0.37553049,4006.4,4005.8,0.81657369]
[1733609462587,1.0424774,4006.3,4005.8,0.81657369]
[1733609462826,0.18564089,4006.2,4005.8,0.81657369]
[1733609463000,0.37553049,4006.4,4005.8,0.81657369]
[1733609463322,1.04270293,4006.3,4005.8,0.81657369]
[1733609463543,0.18564158,4006.2,4005.8,0.81657369]
[1733609463747,1.41223252,4006.4,4005.8,0.81657369]
[1733609464050,1.0427305,4006.3,4005.8,0.81657369]
[1733609464353,1.41223252,4006.4,4005.8,0.81657369]
[1733609464513,1.0429737,4006.3,4005.8,0.81657369]
[1733609464752,0.37553049,4006.4,4005.8,0.81657369]
[1733609464912,1.04300133,4006.3,4005.8,0.81657369]
[1733609465216,1.41223252,4006.4,4005.8,0.81657369]
[1733609465418,2.32982566,4006.3,4006.1,1.07751859]
[1733609465621,1.03670203,4006.4,4006.1,1.07751859]
[1733609465820,0.85766857,4006.3,4006.1,1.07751859]
[1733609466041,1.03670203,4006.5,4006.1,1.07751859]
[1733609466342,3.36724287,4006.4,4006.1,1.07751859]
[1733609466505,2.14479711,4006.3,4006.1,1.07751859]
[1733609466711,0.85791884,4006.2,4006.1,1.07751859]
[1733609466916,0.85832876,4006.2,4006.1,1.07751859]
[1733609467120,1.03670203,4006.4,4006.1,1.12783354]
[1733609467317,1.55532537,4006.6,4006.1,1.12783354]
[1733609467318,3.18252456,4006.3,4006.1,1.12783354]
[1733609467524,0.85832901,4006.2,4006.1,1.07751859]
[1733609467820,2.14636487,4006.2,4006.1,1.12783354]
[1733609468249,0.85832901,4006.2,4006.1,1.87021859]
[1733609468552,0.85832901,4006.2,4006.1,2.05724045]
[1733609468852,1.03670203,4006.4,4006.1,2.1075554]
[1733609469021,2.14797078,4006.3,4006.1,1.92053354]
[1733609469220,1.03670203,4006.4,4006.1,1.92053354]
[1733609469434,1.74623,4008.7,4006.1,1.92053354]
[1733609469435,3.18610283,4006.3,4006.1,1.92053354]
[1733609469616,3.18610283,4006.2,4006.1,1.92053354]
[1733609469817,3.18610283,4006.2,4006.1,2.11258689]
[1733609470124,2.1494008,4006.2,4006.1,2.11258689]
[1733609470858,1.55532537,4006.5,4006.1,2.11258689]
[1733609470859,1.03670203,4006.5,4006.2,0.7927]
[1733609471049,0.85982045,4006.4,4006.2,0.7927]
[1733609471264,1.03670203,4006.5,4006.3,0.04839264]
[1733609471422,1.03670203,4006.5,4006.2,0.7927]
[1733609471423,1.03670203,4006.8,4006.2,0.7927]
[1733609471630,0.85972606,4006.7,4006.6,1.07751859]
[1733609472326,1.03670203,4006.9,4006.6,1.12544989]
[1733609472524,0.85950968,4006.8,4006.7,0.7927]
[1733609472752,2.14875755,4006.8,4006.7,0.7927]
[1733609473318,0.85950968,4006.8,4006.7,0.7927]
[1733609473727,0.85950968,4006.8,4006.7,0.8406313]
[1733609474255,1.03670203,4007.0,4006.7,2.13492214]
[1733609474467,1.03670203,4007.1,4006.7,2.10996488]
[1733609474620,1.03670203,4007.2,4007.0,1.07751859]
[1733609474825,2.14804396,4007.1,4007.0,1.07751859]
[1733609475233,0.85921758,4007.1,4007.0,1.07751859]
[1733609475748,2.14770607,4007.1,4007.0,1.07751859]
[1733609475956,3.1844081,4007.1,4007.0,1.07751859]
[1733609476335,1.03670203,4007.2,4007.0,1.07751859]
[1733609476661,2.14699858,4007.1,4007.0,1.07751859]
[1733609478792,1.03670203,4007.3,4007.0,1.07751859]
[1733609478953,0.85872941,4007.2,4007.0,1.07751859]
[1733609479150,1.03670203,4007.4,4007.0,1.07751859]
[1733609479355,2.14660088,4007.3,4007.0,1.07751859]
[1733609479666,0.85861953,4007.2,4007.0,1.07751859]
[1733609479865,1.03670203,4007.4,4007.0,1.07751859]
[1733609480079,0.85862451,4007.3,4007.0,1.07751859]
[1733609480254,1.03670203,4007.5,4007.0,1.07751859]
[1733609480454,3.18294988,4007.4,4007.0,1.07751859]
[1733609480679,0.85849914,4007.3,4007.0,1.07751859]
[1733609480885,1.03670203,4007.4,4007.0,1.07751859]
[1733609481074,0.85850813,4007.3,4007.0,1.07751859]
[1733609481289,1.58119825,4007.5,4006.7,0.7927]
[1733609481491,0.7649,4007.3,4006.7,1.07751859]
[1733609482258,2.14544094,4007.2,4006.7,1.07751859]
[1733609482562,0.85818988,4007.1,4006.7,1.07751859]
[1733609482776,0.8581639,4007.0,4006.7,1.07751859]
[1733609482954,3.1817995,4006.9,4006.7,1.07751859]
[1733609483156,2.14509747,4006.8,4006.7,1.07751859]
[1733609483390,1.03670203,4007.2,4006.7,1.07751859]
[1733609483693,0.85816698,4007.1,4006.7,1.07751859]
[1733609483993,1.80160203,4007.3,4006.7,1.07751859]
[1733609484286,2.14547115,4007.2,4006.7,1.07751859]
[1733609484486,0.85818846,4007.1,4006.7,1.07751859]
[1733609484697,2.16866001,4007.3,4006.7,1.07751859]
[1733609484906,2.14532888,4007.2,4007.0,1.07751859]
[1733609485056,1.28719733,4007.2,4007.0,1.07751859]
[1733609485257,2.16866001,4007.3,4007.0,1.07751859]
[1733609485486,0.85809151,4007.2,4007.0,1.07751859]
[1733609485655,2.16866001,4007.3,4007.0,1.07751859]
[1733609485855,0.85812126,4007.2,4007.0,1.07751859]
[1733609486092,2.16866001,4007.3,4007.0,1.07751859]
[1733609486306,0.85813421,4007.2,4007.0,1.07751859]
[1733609486517,1.13195798,4007.3,4007.0,1.07751859]
[1733609486686,0.85808391,4007.2,4007.0,1.07751859]
[1733609486885,1.13195798,4007.3,4007.0,1.07751859]
[1733609487107,0.8580794,4007.2,4007.0,1.07751859]
[1733609487307,2.16866001,4007.3,4007.0,1.07751859]
[1733609487524,0.85807434,4007.2,4007.0,1.07751859]
[1733609487838,1.13195798,4007.3,4007.0,1.07751859]
[1733609487990,0.85808634,4007.2,4007.0,1.07751859]
[1733609488323,2.16866001,4007.3,4007.0,1.07751859]
[1733609488478,0.85806132,4007.2,4007.0,1.07751859]
[1733609488678,1.13195798,4007.3,4007.0,1.07751859]
[1733609489218,0.85806696,4007.2,4007.0,1.07751859]
[1733609489512,1.13195798,4007.3,4007.0,1.07751859]
[1733609490500,0.85802453,4007.2,4007.0,1.07751859]
[1733609490779,2.16866001,4007.3,4007.0,1.07751859]
[1733609491283,0.85804689,4007.2,4007.0,1.07751859]
[1733609491611,2.16866001,4007.3,4007.0,1.07751859]
[1733609491776,0.85806895,4007.2,4007.0,1.07751859]
[1733609491977,2.14503817,4007.1,4006.9,1.07751859]
[1733609492284,2.14503817,4007.0,4006.9,1.07751859]
[1733609493020,3.18270797,4007.0,4006.9,0.0376461]
[1733609495287,3.36831698,4007.0,4006.9,0.0376461]
[1733609496429,2.33064718,4007.0,4006.9,0.0376461]
[1733609496613,3.36842908,4007.0,4006.9,0.0376461]
[1733609496800,2.33064718,4007.0,4006.9,0.0376461]
[1733609496999,3.36843001,4007.0,4006.9,0.0376461]
[1733609497511,2.33064718,4007.0,4006.9,0.0376461]
[1733609500893,2.33192043,4007.0,4006.9,0.0376461]
[1733609503501,3.3705201,4007.0,4006.9,0.0376461]
[1733609503912,3.18491109,4007.0,4006.9,0.0376461]
[1733609504112,3.3706543,4007.0,4006.9,0.0376461]
[1733609504339,3.88738,4007.0,4006.9,0.0376461]
[1733609504509,2.33205463,4007.0,4006.9,0.0376461]
[1733609504709,3.37077729,4007.0,4006.9,0.0376461]
[1733609504914,3.18503408,4007.0,4006.9,0.0376461]
[1733609505336,2.14631142,4007.0,4006.9,0.0376461]
[1733609506209,2.1477532,4007.0,4006.9,0.0376461]
[1733609507040,3.51458034,4007.0,4006.4,0.7931]
[1733609507242,1.03896828,4006.8,4006.4,1.87061859]
[1733609507420,2.1477532,4006.7,4006.4,1.87061859]
[1733609507616,0.85910128,4006.6,4006.4,1.87061859]
[1733609507829,1.55532537,4006.9,4006.4,1.87061859]
[1733609507830,1.03896828,4006.7,4006.4,1.87061859]
[1733609508036,0.859347,4006.6,4006.4,1.87061859]
[1733609508210,1.03896828,4006.7,4006.4,1.87061859]
[1733609508543,0.85946058,4006.6,4006.4,1.87061859]
[1733609508842,1.03896828,4006.8,4006.4,1.87061859]
[1733609509002,2.14867032,4006.7,4006.4,1.87061859]
[1733609509202,0.85946813,4006.6,4006.4,1.87061859]
[1733609509418,1.03896828,4006.7,4006.4,1.87061859]
[1733609509643,0.85958779,4006.6,4006.4,1.87061859]
[1733609509950,1.03896828,4006.7,4006.4,1.87061859]
[1733609510152,0.8596471,4006.6,4006.4,1.87061859]
[1733609510441,0.8596471,4006.5,4006.4,1.87061859]
[1733609512107,1.03896828,4006.7,4006.4,1.87061859]
[1733609512308,0.85995009,4006.6,4006.4,0.7931]
[1733609512508,1.03896828,4006.7,4006.4,0.7931]
[1733609512509,0.86005231,4006.5,4006.4,1.07751859]
[1733609512732,1.03896828,4006.8,4006.4,1.07751859]
[1733609512947,2.15024435,4006.7,4006.4,1.1222524]
[1733609513248,0.86010404,4006.6,4006.4,1.07751859]
[1733609513425,1.03896828,4006.7,4006.4,1.07751859]
[1733609513748,1.55532537,4006.9,4006.4,1.07751859]
[1733609513749,0.86021386,4006.6,4006.4,1.07751859]
[1733609513954,1.03896828,4006.8,4006.4,1.07751859]
[1733609514154,3.18949833,4006.7,4006.4,1.07751859]
[1733609514357,0.86021202,4006.6,4006.4,1.07751859]
[1733609514522,1.03896828,4006.7,4006.4,1.07751859]
[1733609514725,2.15092013,4006.6,4006.4,1.07751859]
[1733609515054,1.03896828,4006.7,4006.4,1.07751859]
[1733609515055,0.86036805,4006.5,4006.4,1.07751859]
[1733609516231,2.1511149,4006.5,4006.4,1.07751859]
[1733609517359,2.1515507,4006.5,4006.4,1.07751859]
[1733609518640,3.19051898,4006.5,4006.4,1.07751859]
[1733609518826,6.13223569,4006.5,4006.4,1.07751859]
[1733609519038,3.89830441,4006.5,4006.4,1.07751859]
[1733609519341,5.94624536,4006.5,4006.4,1.07751859]
[1733609519538,2.1515507,4006.5,4006.4,1.07751859]
[1733609519735,3.19206319,4006.5,4006.4,1.07751859]
[1733609520540,1.04051249,4006.5,4006.4,1.07751859]
[1733609520837,3.19146014,4006.5,4006.4,1.07751859]
[1733609524142,1.04051249,4006.5,4006.4,1.07751859]
[1733609524440,3.19151247,4006.5,4006.4,1.07751859]
[1733609527270,2.15099998,4006.5,4006.4,1.07751859]
[1733609528775,2.15099998,4006.5,4005.3,0.7862]
[1733609528776,2.72959352,4006.5,4005.3,0.7862]
[1733609529074,0.826,4006.2,4005.3,0.7862]
[1733609529238,2.15093095,4006.1,4005.7,1.07751859]
[1733609529437,3.1914644,4006.0,4005.7,1.07751859]
[1733609529751,2.15084301,4005.9,4005.3,0.7862]
[1733609530075,0.86037238,4005.8,4005.3,0.7862]
[1733609530234,1.56080062,4005.9,4005.7,1.07751859]
[1733609530435,2.15047477,4005.8,4005.7,1.07751859]
[1733609530670,3.19077851,4005.8,4005.7,1.07751859]
[1733609533482,2.15047477,4005.8,4005.7,1.07751859]
[1733609533976,2.14943278,4005.8,4005.7,1.07751859]
[1733609534133,0.85977311,4005.8,4005.7,1.07751859]
[1733609536139,0.85977311,4005.8,4005.5,1.07751859]
[1733609536480,1.04030374,4006.0,4005.5,1.07751859]
[1733609536779,2.14919506,4005.9,4005.5,1.07751859]
[1733609536969,0.85967802,4005.8,4005.5,1.07751859]
[1733609537291,1.04030374,4006.0,4005.5,1.07751859]
[1733609537588,2.1490501,4005.9,4005.5,1.07751859]
[1733609537749,0.85962004,4005.8,4005.5,1.07751859]
[1733609537935,1.04030374,4006.0,4005.5,1.07751859]
[1733609538140,2.1490371,4005.9,4005.5,1.07751859]
[1733609538338,0.85961484,4005.8,4005.5,1.07751859]
[1733609538538,1.04030374,4006.0,4005.5,1.07751859]
[1733609538742,2.14887498,4005.9,4005.5,1.07751859]
[1733609538962,0.85954148,4005.8,4005.5,1.07751859]
[1733609539155,1.04030374,4006.0,4005.5,1.07751859]
[1733609539365,2.14866116,4005.9,4005.5,1.07751859]
[1733609539590,1.04030374,4006.0,4005.5,1.07751859]
[1733609539885,2.14865383,4005.9,4005.5,1.07751859]
[1733609540067,1.04030374,4006.0,4005.5,1.07751859]
[1733609540277,0.85942723,4005.9,4005.5,1.07751859]
[1733609540456,1.04030374,4006.0,4005.5,1.07751859]
[1733609540659,0.85940081,4005.9,4005.5,1.07751859]
[1733609540861,1.04030374,4006.1,4005.5,1.07751859]
[1733609541066,2.14851287,4006.0,4005.5,1.07751859]
[1733609541272,0.85940515,4005.9,4005.5,1.07751859]
[1733609541489,1.04030374,4006.1,4005.5,1.07751859]
[1733609541678,2.1484173,4006.0,4005.5,1.07751859]
[1733609541982,0.85936692,4005.9,4005.5,1.07751859]
[1733609542190,1.04030374,4006.1,4005.5,1.07751859]
[1733609542347,2.14834795,4006.0,4005.5,1.07751859]
[1733609542552,0.85933918,4005.9,4005.5,1.07751859]
[1733609542751,1.04030374,4006.1,4005.5,1.07751859]
[1733609542989,2.14833196,4006.0,4005.5,1.07751859]
[1733609543203,0.85933278,4005.9,4005.5,1.07751859]
[1733609543359,1.04030374,4006.1,4005.5,1.07751859]
[1733609543570,2.14823735,4006.0,4005.5,1.07751859]
[1733609543867,0.85929738,4005.9,4005.5,1.07751859]
[1733609544191,1.04030374,4006.1,4005.5,1.07751859]
[1733609544387,2.14813353,4006.0,4005.5,1.07751859]
[1733609544696,1.04030374,4006.1,4005.5,1.07751859]
[1733609544984,2.14814778,4006.0,4005.5,1.07751859]
[1733609545194,0.85925911,4005.9,4005.5,1.07751859]
[1733609545402,1.04030374,4006.1,4005.5,1.07751859]
[1733609545562,2.14806681,4006.0,4005.5,1.07751859]
[1733609545895,1.04030374,4006.1,4005.5,1.07751859]
[1733609546189,2.14809563,4006.0,4005.5,1.07751859]
[1733609546399,2.14809563,4005.9,4005.5,1.07751859]
[1733609546565,1.04030374,4005.7,4005.5,1.07751859]
[1733609546769,0.85923825,4005.6,4005.5,1.07751859]
[1733609547268,1.04030374,4005.8,4005.5,1.07751859]
[1733609547480,0.85915997,4005.7,4005.5,1.07751859]
[1733609547681,1.04030374,4005.8,4005.5,1.07751859]
[1733609547882,3.18842482,4005.7,4005.5,1.07751859]
[1733609548090,2.14812108,4005.6,4005.5,1.07751859]
[1733609548599,2.14774475,4005.6,4005.5,1.07751859]
[1733609548797,1.04030374,4005.9,4005.5,1.07751859]
[1733609549117,1.86630374,4006.2,4005.5,1.07751859]
[1733609549414,0.85934496,4006.1,4005.5,1.07751859]
[1733609549614,2.26687353,4006.2,4005.5,1.07751859]
[1733609549817,2.14864695,4006.1,4005.5,1.07751859]
[1733609549972,2.26687353,4006.2,4005.5,1.07751859]
[1733609550172,2.14847648,4006.1,4005.5,1.07751859]
[1733609550474,2.26687353,4006.2,4005.5,1.07751859]
[1733609550673,2.14846095,4006.1,4005.5,1.07751859]
[1733609550870,2.26687353,4006.2,4005.5,1.07751859]
[1733609551075,2.14842033,4006.1,4005.8,1.07751859]
[1733609551285,0.85936813,4006.0,4005.8,1.07751859]
[1733609551616,0.38046059,4006.1,4005.8,1.07751859]
[1733609551773,0.85939792,4006.0,4005.8,1.07751859]
[1733609551976,0.38046059,4006.1,4005.8,1.07751859]
[1733609552298,0.85939488,4006.0,4005.8,1.07751859]
[1733609552521,2.26687353,4006.2,4005.8,1.07751859]
[1733609552714,3.18885222,4006.1,4005.8,1.07751859]
[1733609552906,0.85941939,4006.0,4005.8,1.07751859]
[1733609553205,2.26687353,4006.2,4005.8,1.07751859]
[1733609553387,2.14859676,4006.1,4005.8,1.07751859]
[1733609553584,0.85943964,4006.0,4005.8,1.07751859]
[1733609553796,2.26687353,4006.2,4005.8,1.07751859]
[1733609554002,2.14859475,4006.1,4005.8,1.07751859]
[1733609554197,0.8594379,4006.0,4005.8,1.07751859]
[1733609554418,2.26687353,4006.2,4005.8,1.07751859]
[1733609554620,3.18891414,4006.1,4005.8,1.07751859]
[1733609554838,0.85944416,4006.0,4005.8,1.07751859]
[1733609555133,2.26687353,4006.2,4005.8,1.07751859]
[1733609555319,2.1486583,4006.1,4005.8,1.07751859]
[1733609555508,0.85946332,4006.0,4005.8,1.07751859]
[1733609555834,2.26687353,4006.2,4005.8,1.07751859]
[1733609556031,2.14867017,4006.1,4005.8,1.07751859]
[1733609556192,0.85946807,4006.0,4005.8,1.07751859]
[1733609556390,2.14862052,4005.9,4005.8,1.07751859]
[1733609556731,0.85945109,4005.9,4005.8,1.07751859]
[1733609557221,2.14861494,4005.9,4005.8,1.07751859]
[1733609557923,6.12711805,4005.9,4005.3,0.7862]
[1733609558220,1.03916774,4005.5,4005.3,0.7862]
[1733609558621,0.8591801,4005.4,4005.3,0.7862]
[1733609558828,1.03916774,4005.6,4005.3,0.7862]
[1733609559136,0.85921901,4005.5,4005.3,0.7862]
[1733609559325,1.03916774,4005.6,4005.4,1.07751859]
[1733609559531,0.85919691,4005.5,4005.4,1.07751859]
[1733609561731,1.03916774,4005.7,4005.4,1.07751859]
[1733609561894,2.14797255,4005.6,4005.4,1.07751859]
[1733609562095,1.03916774,4005.7,4005.4,1.07751859]
[1733609562326,2.14786508,4005.6,4005.4,1.07751859]
[1733609562540,0.85914603,4005.5,4005.4,1.07751859]
[1733609563328,1.03916774,4005.7,4005.4,1.07751859]
[1733609563627,2.14802276,4005.6,4005.4,1.07751859]
[1733609563834,1.03916774,4005.8,4005.5,0.18637186]
[1733609564047,0.85925648,4005.7,4005.6,0.808]
[1733609564209,0.85925648,4005.7,4005.6,1.88551859]
[1733609564613,0.85925648,4005.7,4005.6,1.91919727]
[1733609566440,3.18767659,4005.7,4005.6,1.91919727]
[1733609566651,0.85925648,4005.7,4005.6,1.91919727]
[1733609568357,0.85925648,4005.7,4005.6,1.88551859]
[1733609568501,0.85989829,4005.7,4005.6,1.88551859]
[1733609568836,0.85989829,4005.7,4005.6,1.91919727]
[1733609569343,2.14995377,4005.7,4005.6,1.91919727]
[1733609570105,2.15021538,4005.7,4005.6,1.91919727]
[1733609571842,2.15021538,4005.7,4005.6,1.88551859]
[1733609572047,2.15021538,4005.7,4005.6,1.91944216]
[1733609572346,3.18938312,4005.7,4005.6,1.91944216]
[1733609572650,2.15021538,4005.7,4005.6,1.91944216]
[1733609573008,3.18938312,4005.7,4005.6,1.91944216]
[1733609573237,3.19066162,4005.7,4005.6,1.91944216]
[1733609574714,3.19066162,4005.7,4005.6,1.88551859]
[1733609575117,2.15149388,4005.7,4005.6,1.91944216]
[1733609576028,3.19257852,4005.7,4005.6,1.91944216]
[1733609576228,2.15149388,4005.7,4005.6,1.91944216]
[1733609576964,3.19253813,4005.7,4005.6,1.91944216]
[1733609577165,2.15149388,4005.7,4005.6,1.91944216]
[1733609578156,3.19261715,4005.7,4005.6,1.91944216]
[1733609578359,1.04112327,4005.7,4005.6,1.91944216]
[1733609578526,3.19331948,4005.7,4005.6,1.91944216]
[1733609578971,3.19331948,4005.7,4005.6,1.88551859]
[1733609579266,2.15219621,4005.7,4005.6,1.88551859]
[1733609579459,2.15219621,4005.7,4005.6,1.91943736]
[1733609580078,3.19333833,4005.7,4005.6,1.91943736]
[1733609581161,2.15219621,4005.7,4005.6,1.91943736]
[1733609581350,2.15219621,4005.7,4005.6,1.11143736]
[1733609581722,2.15222292,4005.7,4005.6,1.11143736]
[1733609582149,3.1934747,4005.7,4005.6,1.11143736]
[1733609582326,2.15222292,4005.7,4005.6,1.11143736]
[1733609586662,2.15265987,4005.7,4005.6,1.11143736]
[1733609587980,3.19426956,4005.7,4005.6,1.11143736]
[1733609588277,3.19426956,4005.7,4005.6,1.07751859]
[1733609589436,4.0614802,4005.7,4005.6,1.07751859]
[1733609589772,6.66484815,4005.7,4005.6,1.07751859]
[1733609589978,6.89757033,4005.7,4005.6,1.07751859]
[1733609590271,6.14482264,4005.7,4005.6,1.07751859]
[1733609590455,2.33883261,4005.7,4005.6,1.07751859]
[1733609590657,2.15265987,4005.7,4005.6,1.07751859]
[1733609591172,3.194576,4005.7,4005.6,1.07751859]
[1733609591331,2.15265987,4005.7,4005.6,1.07751859]
[1733609591773,3.19642846,4005.7,4005.6,1.07751859]
[1733609591977,2.15429183,4005.7,4005.6,1.07751859]
[1733609592476,3.19642846,4005.7,4005.6,1.07751859]
[1733609592649,2.15429183,4005.7,4005.6,1.07751859]
[1733609593269,3.19635639,4005.7,4005.6,1.07751859]
[1733609593652,2.15429183,4005.7,4005.6,1.07751859]
[1733609593954,3.19635639,4005.7,4005.6,1.07751859]
[1733609594850,2.15429183,4005.7,4005.6,1.07751859]
[1733609595855,2.1541278,4005.7,4005.6,1.07751859]
[1733609596059,0.86171673,4005.7,4005.6,1.07751859]
[1733609596272,2.15417832,4005.7,4005.6,1.07751859]
[1733609596447,0.86171673,4005.7,4005.6,1.07751859]
[1733609596647,2.1540887,4005.7,4005.6,1.07751859]
[1733609597181,0.86163548,4005.7,4005.6,1.07751859]
[1733609597339,2.15410315,4005.7,4005.6,1.07751859]
[1733609600189,3.19616771,4005.7,4005.6,1.07751859]
[1733609600874,2.15410315,4005.7,4005.6,1.07751859]
[1733609601584,2.15439623,4005.7,4005.6,1.07751859]
[1733609601881,3.19646079,4005.7,4005.6,1.07751859]
[1733609602260,2.15439623,4005.7,4005.6,1.07751859]
[1733609602672,3.19646079,4005.7,4005.6,1.07751859]
[1733609603975,3.19646079,4005.7,4005.3,1.88641859]
[1733609604284,2.15446965,4005.6,4005.3,1.88641859]
[1733609604447,1.04206456,4005.7,4005.3,1.88641859]
[1733609604647,2.15452798,4005.6,4005.4,0.03274558]
[1733609604884,0.86181119,4005.5,4005.4,0.03274558]
[1733609605062,1.04206456,4005.7,4005.4,0.03274558]
[1733609605258,0.86183008,4005.6,4005.4,0.03274558]
[1733609605588,1.04206456,4005.7,4005.4,0.03274558]
[1733609605742,0.86181135,4005.6,4005.4,0.03274558]
[1733609605941,1.04206456,4005.7,4005.4,0.03274558]
[1733609605942,0.86179795,4005.5,4005.4,0.03274558]
[1733609606386,1.04206456,4005.7,4005.4,0.03274558]
[1733609606594,0.86181411,4005.6,4005.4,0.03274558]
[1733609606756,1.04206456,4005.7,4005.4,0.03274558]
[1733609606951,0.86180822,4005.6,4005.4,0.03274558]
[1733609607151,1.04206456,4005.7,4005.4,0.03274558]
[1733609607366,0.86184178,4005.6,4005.4,0.03274558]
[1733609607681,1.04206456,4005.7,4005.4,0.03274558]
[1733609607883,0.86183749,4005.6,4005.4,0.03274558]
[1733609608074,1.04206456,4005.7,4005.4,0.03274558]
[1733609608269,0.86186614,4005.6,4005.4,0.03274558]
[1733609608485,1.04206456,4005.7,4005.4,0.03274558]
[1733609608786,0.86186549,4005.6,4005.4,0.03274558]
[1733609608998,1.04206456,4005.7,4005.4,0.03274558]
[1733609609182,0.86186792,4005.6,4005.4,0.03274558]
[1733609609384,1.04206456,4005.7,4005.4,0.03274558]
[1733609609675,0.86190014,4005.6,4005.4,0.03274558]
[1733609609854,1.04206456,4005.7,4005.4,0.03274558]
[1733609610098,0.86190386,4005.6,4005.4,0.03274558]
[1733609610247,1.04206456,4005.7,4005.4,0.03274558]
[1733609610452,0.8619058,4005.6,4005.4,0.03274558]
[1733609610753,1.04206456,4005.7,4005.4,0.03274558]
[1733609610948,0.86191456,4005.6,4005.4,0.03274558]
[1733609611153,1.04206456,4005.7,4005.4,0.03274558]
[1733609611386,0.86189629,4005.6,4005.4,0.03274558]
[1733609611588,1.04206456,4005.7,4005.4,0.03274558]
[1733609611796,0.86189628,4005.6,4005.4,0.03274558]
[1733609611965,1.04206456,4005.7,4005.4,0.03274558]
[1733609612292,0.8618958,4005.6,4005.4,0.03274558]
[1733609612466,1.04206456,4005.8,4005.4,0.03274558]
[1733609612668,3.19679988,4005.7,4005.4,0.03274558]
[1733609612985,0.86189413,4005.6,4005.3,1.88641859]
[1733609613151,1.04206456,4005.7,4005.3,1.88641859]
[1733609613355,0.86188662,4005.6,4005.4,0.03274558]
[1733609613555,1.04206456,4005.8,4005.4,0.03274558]
[1733609613867,2.15472943,4005.7,4005.4,0.03274558]
[1733609614072,0.86189177,4005.6,4005.3,1.88641859]
[1733609614268,1.04206456,4005.8,4005.3,1.88641859]
[1733609614499,3.19678016,4005.7,4005.4,0.03274558]
[1733609614667,1.56266952,4005.8,4005.6,1.07751859]
[1733609614988,2.15502295,4005.7,4005.6,1.07751859]
[1733609616469,2.15520785,4005.7,4005.6,1.07751859]
[1733609618564,0.86208314,4005.7,4005.6,1.07751859]
[1733609619385,1.04252613,4005.9,4005.6,1.07751859]
[1733609619589,2.15508661,4005.8,4005.6,1.07751859]
[1733609619899,1.04252613,4005.9,4005.6,1.07751859]
[1733609620062,0.86201318,4005.8,4005.6,1.07751859]
[1733609620265,1.04252613,4005.9,4005.7,0.03263511]
[1733609620563,0.86202945,4005.8,4005.7,0.03263511]
[1733609621499,0.8619353,4005.8,4005.7,0.03263511]
[1733609622498,2.15467233,4005.8,4005.7,0.03263511]
[1733609622699,3.19719846,4005.8,4005.7,0.03263511]
[1733609622898,3.19719846,4005.8,4005.6,1.07751859]
[1733609623088,2.15467233,4005.7,4005.6,1.07751859]
[1733609623399,3.19719846,4005.7,4005.6,1.07751859]
[1733609623592,0.8619353,4005.7,4005.6,1.07751859]
[1733609623901,1.04252613,4005.9,4005.6,1.07751859]
[1733609624199,2.1547483,4005.8,4005.6,1.07751859]
[1733609624400,1.04252613,4005.9,4005.6,1.07751859]
[1733609624579,2.15469113,4005.8,4005.6,1.07751859]
[1733609624899,0.8618699,4005.7,4005.6,1.07751859]
[1733609625197,1.04252613,4005.9,4005.6,1.07751859]
[1733609625398,3.98868419,4005.8,4005.2,1.07751859]
[1733609625697,3.98868419,4005.8,4005.0,0.8051]
[1733609625698,3.19718419,4005.7,4005.5,1.07751859]
[1733609625908,2.15465806,4005.6,4005.5,1.07751859]
[1733609626417,0.86190571,4005.6,4005.5,1.07751859]
[1733609626615,3.19715173,4005.6,4005.5,1.07751859]
[1733609631383,3.19734534,4005.6,4005.5,1.07751859]
[1733609632185,2.15481921,4005.6,4005.5,1.07751859]
[1733609635642,3.71748873,4005.6,4005.5,1.07751859]
[1733609636262,3.71817555,4005.6,4005.5,1.07751859]
[1733609636867,3.71841202,4005.6,4005.5,1.07751859]
[1733609637532,3.71839609,4005.6,4005.5,1.07751859]
[1733609640774,3.88020806,4005.6,4005.5,1.07751859]
[1733609643069,3.71959951,4005.6,4005.5,1.07751859]
[1733609643528,2.15563006,4005.6,4005.5,1.07751859]
[1733609644423,1.56396945,4005.7,4005.5,1.07751859]
[1733609644662,2.15553052,4005.6,4005.5,1.07751859]
[1733609645028,3.71949997,4005.6,4005.5,1.07751859]
[1733609645225,6.67258602,4005.6,4005.5,0.03736707]
[1733609645429,3.71930061,4005.6,4005.5,1.11488566]
[1733609645730,5.96432241,4005.6,4005.5,1.27198716]